bitfinex/quotes_ETHUSD_20241124
["timestamp","ask_amount","ask_price","bid_price","bid_amount"]
[1732464694294,1.161307,3303.0,3301.7,0.7996]
[1732464694295,3.02802,3302.5,3301.9,2.42284]
[1732464694474,3.02802,3302.5,3301.8,3.0]
[1732464694676,3.02843,3302.1,3301.5,2.42311]
[1732464695386,0.7805,3302.1,3301.2,2.42329]
[1732464695709,3.80887,3302.1,3301.4,2.42314]
[1732464696007,0.7805,3302.1,3301.0,2.42343]
[1732464696212,3.02893,3301.5,3300.9,0.1473069]
[1732464696512,3.02889,3301.6,3300.9,2.5708769]
[1732464696817,3.02894,3301.5,3300.9,0.1473069]
[1732464696976,1.2230718,3302.0,3300.9,0.1473069]
[1732464697315,0.7805,3301.1,3300.9,0.1473069]
[1732464698219,0.7805,3301.5,3300.9,0.1473069]
[1732464698387,0.7805,3301.5,3300.9,2.5708769]
[1732464698588,0.7805,3301.5,3301.0,2.4235]
[1732464699017,0.7805,3301.5,3300.9,0.1473069]
[1732464699219,1.38899375,3301.5,3300.9,0.1473069]
[1732464699770,3.02901,3301.4,3300.9,0.1473069]
[1732464699972,3.02938,3301.0,3300.9,0.1473069]
[1732464700448,3.02928,3301.2,3300.9,0.1473069]
[1732464700753,0.7805,3301.3,3300.9,0.1473069]
[1732464701107,0.7805,3301.3,3301.1,2.42338]
[1732464701344,0.60849375,3301.5,3301.2,2.42336]
[1732464701648,0.60849375,3301.5,3300.9,0.1473069]
[1732464701958,3.02938,3301.1,3300.9,0.1473069]
[1732464702112,0.302938,3301.0,3300.9,0.1473069]
[1732464702440,0.302938,3301.0,3300.1,2.42411]
[1732464702441,3.02962,3300.8,3300.1,2.42415]
[1732464702742,3.02957,3300.8,3300.2,2.42408]
[1732464703151,1.088938,3301.0,3299.8,2.42438]
[1732464703448,1.088938,3301.0,3300.4,2.42389]
[1732464703858,0.60863804,3301.2,3300.1,3.0]
[1732464704021,0.60863804,3301.2,3300.9,2.42356]
[1732464705115,0.60863804,3301.2,3301.1,2.42343]
[1732464705316,0.786,3301.4,3300.9,2.42352]
[1732464705624,0.786,3301.4,3301.0,2.4235]
[1732464705827,0.786,3301.4,3301.0,2.42345]
[1732464706053,0.786,3301.4,3301.2,2.42334]
[1732464706269,0.786,3301.4,3301.0,2.4235]
[1732464706763,3.02926,3301.2,3300.7,0.3012]
[1732464706970,3.02939,3301.0,3300.5,2.42386]
[1732464707135,3.02947,3300.9,3300.1,2.42416]
[1732464707340,3.81687,3300.8,3300.2,5.42404]
[1732464707740,3.02975,3300.6,3300.0,2.42424]
[1732464708220,3.02975,3300.6,3299.7,0.7622]
[1732464708221,4.198557,3300.8,3300.1,2.42414]
[1732464708630,3.02967,3300.7,3300.1,2.42414]
[1732464708939,3.02967,3300.7,3299.7,2.42439]
[1732464708940,3.02994,3300.4,3299.7,2.42439]
[1732464709161,3.03007,3300.3,3299.8,2.42438]
[1732464709325,3.02996,3300.4,3299.8,2.42438]
[1732464709519,3.03003,3300.3,3299.6,2.42453]
[1732464709761,3.03012,3300.2,3299.6,2.42453]
[1732464709924,3.03026,3300.1,3299.4,2.42465]
[1732464710121,3.03012,3300.2,3299.5,2.4246]
[1732464710516,3.03022,3300.1,3299.5,2.4246]
[1732464710917,3.45720523,3300.3,3299.6,2.42448]
[1732464711115,3.03008,3300.3,3299.6,2.42448]
[1732464711324,3.0302,3300.2,3299.6,2.42448]
[1732464711870,3.62456802,3300.4,3299.8,2.42437]
[1732464712009,3.62456802,3300.4,3299.3,3.0]
[1732464712218,1.24129227,3300.5,3300.0,2.42419]
[1732464712219,0.7873,3300.5,3300.0,2.42419]
[1732464712428,3.81714,3300.5,3300.0,2.42419]
[1732464712638,0.7873,3300.5,3300.0,2.42419]
[1732464713748,0.7873,3300.5,3299.8,2.42437]
[1732464713947,0.7873,3300.5,3299.0,0.7622]
[1732464713948,3.03009,3300.3,3299.6,2.42449]
[1732464714251,3.03028,3300.1,3299.5,2.42459]
[1732464714449,3.03044,3299.9,3299.3,2.42469]
[1732464714605,3.03039,3299.9,3299.3,2.42469]
[1732464714969,0.7812,3300.0,3299.4,2.42462]
[1732464715308,0.7812,3300.0,3299.1,3.0]
[1732464715508,0.60355755,3300.1,3299.9,2.42431]
[1732464715707,0.60355755,3300.1,3300.0,2.42424]
[1732464716208,0.7812,3301.1,3299.8,0.8157]
[1732464716408,0.7812,3301.1,3300.8,2.42358]
[1732464716743,0.7812,3301.1,3300.5,2.42387]
[1732464716946,1.162231,3301.1,3300.6,2.42378]
[1732464717247,3.02957,3300.8,3300.1,2.4241]
[1732464717478,0.7812,3300.7,3300.2,2.42404]
[1732464717650,0.7812,3300.7,3300.3,2.42399]
[1732464718316,0.7812,3300.7,3300.6,2.4238]
[1732464718845,0.7812,3300.7,3300.3,2.424]
[1732464719205,0.7812,3300.7,3300.5,2.42382]
[1732464719411,0.7812,3300.7,3300.6,2.4238]
[1732464719609,0.60308593,3300.9,3300.8,2.42365]
[1732464720345,0.7812,3301.1,3301.0,2.4235]
[1732464720649,0.7812,3301.1,3300.4,3.23963]
[1732464720650,0.7812,3301.1,3300.6,2.42375]
[1732464720821,0.381042,3301.0,3300.6,2.42374]
[1732464721053,0.7812,3301.1,3300.8,2.42364]
[1732464721322,1.39844771,3301.1,3300.8,2.42364]
[1732464721475,1.39844771,3301.1,3300.7,2.42371]
[1732464721682,0.55,3301.0,3300.6,2.42374]
[1732464721887,0.99277077,3301.0,3300.8,2.42359]
[1732464722218,2.78904165,3301.8,3301.7,2.42299]
[1732464722219,0.7948,3301.8,3301.7,2.42299]
[1732464722823,0.1,3303.2,3300.9,2.42358]
[1732464722824,0.7948,3302.2,3301.6,2.42302]
[1732464723098,0.7948,3302.2,3300.9,0.3012]
[1732464723099,0.7948,3302.2,3301.8,2.42287]
[1732464723317,0.7948,3302.2,3302.0,2.42276]
[1732464723475,1.41098599,3302.2,3302.1,2.4227]
[1732464724013,0.7948,3302.8,3302.3,2.42253]
[1732464724305,0.7948,3302.8,3302.1,2.4227]
[1732464724306,0.60765558,3302.4,3302.2,2.42259]
[1732464724513,0.60765558,3302.4,3302.1,2.4227]
[1732464724514,0.60765558,3302.4,3302.3,2.42255]
[1732464724671,0.60765558,3302.4,3302.1,2.42268]
[1732464724872,0.60765558,3302.4,3302.2,2.42257]
[1732464725161,0.60765558,3302.4,3302.3,2.42255]
[1732464725419,0.7948,3302.8,3301.9,2.42284]
[1732464725596,0.7948,3302.8,3302.4,2.42246]
[1732464725914,0.7948,3302.8,3302.5,2.42233]
[1732464726179,0.28990506,3304.0,3301.7,0.0302831]
[1732464726180,0.60596159,3302.9,3302.8,2.42218]
[1732464726274,0.7948,3303.2,3302.2,0.7732]
[1732464726476,0.8216,3303.7,3303.4,2.42171]
[1732464726799,0.8216,3303.7,3303.5,2.42164]
[1732464727113,0.8216,3304.2,3303.9,2.42138]
[1732464727286,0.8216,3304.2,3303.8,2.4214]
[1732464727477,0.8216,3304.2,3303.0,2.42204]
[1732464727478,0.61074104,3304.0,3303.0,2.42204]
[1732464727802,0.61074104,3304.0,3302.9,0.7622]
[1732464727803,3.63743104,3304.0,3303.3,2.42175]
[1732464727996,0.3637431,3303.9,3303.4,2.42168]
[1732464728317,0.61074104,3304.0,3303.8,2.4214]
[1732464728613,0.61074104,3304.0,3302.9,0.7622]
[1732464728614,0.61074104,3304.0,3302.9,3.7622]
[1732464728906,0.61074104,3304.0,3303.4,2.4217]
[1732464728997,0.3637311,3303.9,3303.4,2.42172]
[1732464729194,0.3637311,3303.9,3303.5,2.42166]
[1732464729421,0.3637311,3303.9,3303.4,2.42172]
[1732464729587,0.55,3303.8,3303.4,2.42172]
[1732464729804,0.55,3303.9,3303.7,2.42152]
[1732464730127,0.55,3303.9,3303.7,2.42149]
[1732464730312,0.55,3303.9,3303.7,2.42151]
[1732464730523,0.8216,3304.2,3303.6,2.42153]
[1732464730717,0.8216,3304.6,3304.1,2.42123]
[1732464730928,2.78376183,3305.5,3303.8,0.7622]
[1732464730929,3.02546,3305.3,3304.5,2.42094]
[1732464731214,0.8216,3305.2,3304.0,4.8426]
[1732464731531,0.8216,3305.2,3304.7,2.42078]
[1732464731764,0.8216,3305.2,3304.8,2.42067]
[1732464731904,0.61783949,3304.9,3304.6,2.42081]
[1732464732083,0.8216,3305.2,3304.8,2.42066]
[1732464732550,0.8216,3305.2,3305.0,2.42055]
[1732464732741,0.8216,3305.7,3305.1,2.4205]
[1732464732903,0.8216,3305.7,3305.3,2.42035]
[1732464733109,0.8216,3305.7,3304.9,2.42058]
[1732464733328,0.61258102,3305.4,3304.8,2.42066]
[1732464733497,0.3637871,3305.3,3304.9,2.42061]
[1732464733751,0.61258102,3305.4,3305.0,2.42056]
[1732464733921,0.61258102,3305.4,3305.2,2.42042]
[1732464734119,0.61258102,3305.4,3304.8,2.42071]
[1732464734492,0.55,3305.3,3304.9,2.42059]
[1732464734705,0.55,3305.3,3304.7,2.42078]
[1732464735144,0.55,3305.3,3304.4,2.42101]
[1732464735297,0.8216,3305.7,3305.3,2.42031]
[1732464735493,3.02464,3306.2,3305.5,2.4202]
[1732464735727,0.8216,3306.3,3304.7,0.7622]
[1732464735728,0.60671054,3305.7,3304.7,0.7622]
[1732464735993,0.60671054,3305.7,3304.8,2.42071]
[1732464736413,0.60671054,3305.7,3304.7,0.7622]
[1732464736414,3.84683,3305.6,3304.9,2.42062]
[1732464736503,3.84683,3305.6,3304.3,3.18326]
[1732464736504,0.55,3305.4,3304.3,3.18326]
[1732464736704,0.55,3304.9,3303.9,0.7622]
[1732464737010,0.55,3304.6,3304.2,2.42114]
[1732464737206,0.55,3304.7,3304.1,2.42117]
[1732464737405,0.55,3304.7,3303.9,0.7622]
[1732464737607,3.57575,3305.0,3304.3,2.42108]
[1732464737849,0.55,3304.8,3304.6,2.42082]
[1732464738006,3.8216,3305.5,3304.8,2.42066]
[1732464738353,3.8216,3305.5,3304.4,2.42099]
[1732464738354,0.55,3305.1,3304.4,2.42099]
[1732464738845,3.02581,3304.9,3304.2,2.42116]
[1732464739133,0.55,3304.8,3304.4,2.42098]
[1732464739344,0.55,3304.9,3304.4,2.42098]
[1732464739524,0.89446736,3304.9,3304.4,2.42098]
[1732464739844,0.89446736,3304.9,3304.0,3.0]
[1732464739845,0.89446736,3304.9,3304.1,2.42123]
[1732464740045,0.55,3304.9,3304.2,2.42116]
[1732464740306,0.55,3305.0,3304.5,2.42088]
[1732464740458,0.55,3305.0,3304.3,2.42108]
[1732464740863,3.57569,3305.1,3304.3,2.42108]
[1732464741123,0.61700944,3305.4,3304.8,2.42071]
[1732464741255,0.61700944,3305.4,3304.9,2.42058]
[1732464741478,0.44637794,3305.4,3304.9,2.42058]
[1732464741798,3.02499,3305.8,3305.0,2.42055]
[1732464741799,3.02508,3305.7,3305.0,2.42055]
[1732464742008,3.327579,3305.7,3305.1,2.4205]
[1732464742301,0.4149179,3305.6,3305.1,2.4205]
[1732464742464,3.02541,3305.4,3304.8,2.42072]
[1732464742671,3.02568,3305.1,3304.4,2.42096]
[1732464742882,0.302541,3305.3,3304.2,3.17313]
[1732464743201,0.55,3304.8,3304.3,2.42108]
[1732464743499,0.907581,3304.7,3304.6,2.42086]
[1732464743801,0.55,3304.7,3304.6,2.42086]
[1732464744204,0.55,3305.2,3304.8,2.42072]
[1732464744406,0.55,3305.4,3304.5,2.42094]
[1732464744599,0.55,3305.1,3304.2,0.752]
[1732464744773,0.55,3305.1,3304.9,2.42064]
[1732464744968,0.55,3305.3,3304.4,2.42096]
[1732464745208,0.753,3305.9,3305.2,2.42042]
[1732464745504,3.77791,3305.9,3305.2,2.42038]
[1732464745698,0.96941025,3305.8,3304.9,0.8157]
[1732464745902,0.96941025,3305.8,3305.1,2.42045]
[1732464746116,3.02518,3305.6,3304.9,3.23629]
[1732464746399,0.55,3305.4,3305.0,2.42056]
[1732464746687,0.55,3305.6,3304.7,2.42076]
[1732464746890,3.57523,3305.6,3304.7,2.42079]
[1732464747062,3.57523,3305.6,3304.5,3.0]
[1732464747063,0.55,3305.4,3304.5,5.42092]
[1732464747261,0.55,3305.2,3304.5,2.42092]
[1732464747465,0.55,3305.2,3304.7,2.42072]
[1732464747687,0.985505,3305.2,3304.8,2.4207]
[1732464747846,0.985505,3305.2,3304.6,2.42081]
[1732464748050,0.55,3305.0,3304.7,2.42079]
[1732464748262,0.55,3305.1,3305.0,2.42057]
[1732464748484,0.55,3305.6,3305.1,2.42049]
[1732464748794,0.49488002,3305.6,3305.2,2.42041]
[1732464750192,0.49488002,3305.6,3304.8,0.8129]
[1732464750193,0.59411025,3305.8,3305.7,2.42006]
[1732464750352,3.80395,3306.5,3305.7,2.42006]
[1732464750553,3.80395,3306.5,3305.9,2.41986]
[1732464750787,3.02445,3306.4,3305.8,2.41998]
[1732464750955,3.404845,3306.4,3305.8,2.41998]
[1732464751276,0.380395,3306.4,3306.0,2.41983]
[1732464751484,0.380395,3306.4,3305.8,2.41998]
[1732464751683,0.55,3306.4,3305.8,2.41998]
[1732464752358,1.16717578,3306.4,3305.6,2.42013]
[1732464752701,0.55,3306.2,3305.7,2.42004]
[1732464752992,0.55,3306.0,3305.5,2.42019]
[1732464753172,3.02471,3306.1,3305.5,2.42019]
[1732464753373,3.57453,3306.3,3305.5,2.42019]
[1732464753374,0.55,3306.0,3305.5,2.42019]
[1732464753568,0.61717578,3306.4,3305.9,2.41991]
[1732464753569,0.55,3306.1,3305.9,2.41991]
[1732464753770,0.7796,3306.9,3306.3,2.41962]
[1732464753996,3.80359,3306.9,3306.3,2.41962]
[1732464754205,3.404439,3306.8,3306.1,4.83945]
[1732464754503,3.02426,3306.6,3306.1,2.41971]
[1732464754664,3.02426,3306.6,3305.9,2.41988]
[1732464754665,3.326776,3306.5,3305.9,2.41988]
[1732464754865,3.326776,3306.5,3305.7,2.42004]
[1732464755118,3.326776,3306.5,3305.8,2.41992]
[1732464755298,0.55,3306.3,3305.8,2.41992]
[1732464756890,0.55,3306.1,3305.6,2.42012]
[1732464757412,0.55,3306.1,3305.4,2.42027]
[1732464757413,3.02499,3305.8,3305.2,5.42039]
[1732464757566,0.55,3305.5,3305.0,2.42057]
[1732464757912,0.55,3305.3,3305.0,2.42057]
[1732464758060,0.55,3305.6,3305.1,2.42049]
[1732464758260,0.55,3305.6,3305.0,2.42057]
[1732464758467,0.55,3305.4,3305.0,2.42057]
[1732464758974,0.55,3305.4,3305.0,5.42057]
[1732464759170,0.55,3305.7,3305.2,2.42036]
[1732464759891,3.57507,3305.7,3305.2,2.42036]
[1732464760101,0.55,3305.5,3305.2,2.42036]
[1732464761213,0.55,3305.5,3305.3,2.42033]
[1732464761416,0.55,3305.5,3304.8,0.8129]
[1732464761417,0.55,3305.7,3304.9,3.0]
[1732464761572,0.61132152,3305.8,3296.5,15.4406929]
[1732464761573,0.55,3305.2,3304.7,2.42074]
[1732464761766,0.55,3305.2,3304.5,0.8069]
[1732464761767,0.55,3305.0,3304.5,3.2278]
[1732464761973,3.988302,3305.0,3304.5,2.4209]
[1732464762209,3.57574,3305.0,3304.3,2.42108]
[1732464762508,0.55,3304.7,3304.3,2.42108]
[1732464762707,3.02594,3304.8,3304.3,2.42108]
[1732464762708,0.55,3304.8,3304.4,2.42097]
[1732464763011,1.155168,3304.8,3304.6,2.42086]
[1732464763220,0.55,3304.8,3304.7,2.42079]
[1732464763571,0.55,3304.8,3304.4,2.42098]
[1732464763791,0.55,3305.2,3304.6,4.84162]
[1732464764017,0.55,3305.0,3304.6,2.42081]
[1732464764505,0.55,3305.0,3304.2,2.42113]
[1732464764506,3.02593,3304.8,3304.2,2.42113]
[1732464764716,3.02593,3304.8,3304.0,2.42127]
[1732464764717,0.55,3304.5,3303.8,2.42142]
[1732464765006,0.55,3304.5,3303.6,2.42157]
[1732464765322,3.02562,3305.1,3303.2,2.42187]
[1732464765323,0.7898,3303.9,3303.2,2.42187]
[1732464765474,0.55,3303.8,3303.2,2.42187]
[1732464765675,0.55,3303.8,3303.3,2.4218]
[1732464765999,0.55,3303.8,3303.0,2.422]
[1732464766307,0.55,3303.6,3303.1,2.42196]
[1732464766481,0.55,3303.7,3303.3,2.42181]
[1732464766812,0.55,3303.8,3303.4,2.42174]
[1732464767304,0.986651,3303.8,3303.4,2.42174]
[1732464767706,0.986651,3303.8,3303.5,2.42166]
[1732464768015,0.55,3303.8,3303.6,2.42157]
[1732464768172,0.55,3303.8,3303.4,2.42174]
[1732464768374,0.55,3303.8,3303.5,2.4216]
[1732464768809,0.55,3303.8,3303.4,2.42174]
[1732464769019,0.55,3303.8,3303.6,2.42157]
[1732464769179,0.8109,3304.3,3304.0,2.42127]
[1732464769522,3.02588,3304.9,3304.1,2.42121]
[1732464769523,3.02605,3304.7,3304.1,2.42121]
[1732464769715,1.1437442,3304.8,3304.3,2.42103]
[1732464769899,0.8109,3304.8,3304.5,2.42093]
[1732464770214,0.8109,3305.1,3304.5,2.42093]
[1732464770412,0.8109,3305.1,3304.7,2.42078]
[1732464770615,1.194536,3305.1,3304.7,2.42078]
[1732464771082,1.194536,3305.1,3304.5,2.42088]
[1732464771289,0.61197239,3304.8,3304.5,2.42088]
[1732464771803,0.56197239,3304.8,3304.5,2.42088]
[1732464772501,0.8109,3305.1,3304.7,2.42079]
[1732464772797,0.36362315,3305.7,3304.9,2.42058]
[1732464772798,0.59505499,3305.3,3304.9,2.42058]
[1732464772975,0.8109,3305.4,3304.9,2.42064]
[1732464773181,0.8109,3305.4,3305.0,2.42056]
[1732464773811,0.8109,3305.7,3305.0,2.42056]
[1732464774112,0.58991844,3305.5,3305.0,2.42051]
[1732464774319,3.02549,3305.3,3304.2,3.0]
[1732464774624,3.61522844,3305.5,3304.9,2.42063]
[1732464775081,0.55,3305.4,3305.0,2.42056]
[1732464777312,0.58991844,3305.5,3305.0,2.42052]
[1732464777492,0.58991844,3305.5,3304.9,2.42062]
[1732464777493,0.55,3305.4,3305.1,2.42048]
[1732464778015,0.55,3305.4,3304.6,2.42086]
[1732464778177,0.58991844,3305.5,3305.3,2.42029]
[1732464778581,0.55,3305.5,3305.4,2.42028]
[1732464779922,0.55,3306.0,3305.7,2.42]
[1732464780079,0.8109,3306.1,3305.7,2.42]
[1732464780476,3.83563,3306.1,3305.5,2.42017]
[1732464780781,3.83563,3306.1,3305.0,0.7923]
[1732464780782,1.42650023,3306.1,3305.6,2.42007]
[1732464780976,1.42650023,3306.1,3305.6,2.42011]
[1732464781209,1.42650023,3306.1,3305.8,2.41997]
[1732464781522,0.55,3306.0,3305.8,2.41997]
[1732464781827,0.8087,3306.5,3306.2,2.41964]
[1732464781984,0.8087,3306.5,3306.4,2.41954]
[1732464782181,3.83276,3306.9,3306.2,2.41964]
[1732464782384,0.8087,3306.9,3306.3,2.41961]
[1732464782587,3.02408,3306.8,3306.3,2.41961]
[1732464782811,3.02408,3306.8,3306.2,2.41968]
[1732464782994,0.8087,3306.9,3306.2,2.41968]
[1732464783211,0.60178487,3306.6,3305.8,2.41998]
[1732464783526,0.60178487,3306.6,3305.7,0.7702]
[1732464783527,0.55,3306.5,3306.2,2.41967]
[1732464783885,0.55,3306.5,3305.7,0.7702]
[1732464783886,0.55,3306.5,3305.7,3.19019]
[1732464784081,0.8023,3306.3,3305.4,3.0]
[1732464784309,0.55,3306.2,3305.8,2.41993]
[1732464784696,0.55,3306.2,3305.9,2.41986]
[1732464785175,0.55,3306.2,3305.6,2.4201]
[1732464785426,0.55,3305.9,3305.6,2.42007]
[1732464785638,0.55,3306.2,3305.5,0.8318]
[1732464785815,0.55,3306.2,3306.0,2.41979]
[1732464786288,0.55,3306.2,3305.8,2.41996]
[1732464786817,0.55,3306.2,3305.6,0.3018]
[1732464787019,0.55,3306.2,3305.6,2.42013]
[1732464787321,3.57467,3306.2,3305.4,2.42027]
[1732464787520,0.55,3306.0,3305.4,2.42027]
[1732464787721,0.8326,3305.9,3305.2,2.42037]
[1732464787927,0.55,3305.8,3305.1,2.42045]
[1732464788426,0.55,3305.8,3305.4,2.42025]
[1732464788590,0.55,3305.8,3305.1,2.42044]
[1732464788792,0.55,3305.8,3305.3,2.42029]
[1732464790203,0.55,3305.8,3305.0,3.0]
[1732464790408,3.57505,3305.8,3304.8,5.42072]
[1732464790739,0.55,3305.3,3304.6,6.21671]
[1732464790941,0.55,3305.3,3304.4,2.42099]
[1732464790942,0.55,3305.1,3304.4,2.42095]
[1732464791241,0.55,3305.1,3304.3,0.7959]
[1732464791242,3.02575,3305.0,3304.3,3.21696]
[1732464791568,3.02606,3304.7,3304.1,0.3018]
[1732464791702,3.02632,3304.4,3303.7,2.42149]
[1732464791904,3.02632,3304.4,3303.7,0.242152]
[1732464792140,3.57637,3304.3,3303.6,0.7764]
[1732464792353,0.55,3304.3,3303.6,0.7764]
[1732464792544,3.57633,3304.4,3303.6,3.19796]
[1732464792746,0.55,3304.4,3303.6,0.7764]
[1732464792907,0.55,3304.4,3303.9,2.42135]
[1732464793105,0.55,3304.7,3303.9,2.42135]
[1732464793343,3.02613,3304.6,3303.9,2.42135]
[1732464793507,0.55,3304.6,3303.9,2.4213]
[1732464793702,0.55,3304.6,3303.9,0.54213]
[1732464793956,3.02655,3304.1,3303.4,5.42169]
[1732464794248,1.3181,3304.2,3303.3,3.19819]
[1732464794249,1.3181,3304.2,3303.6,2.42158]
[1732464794447,1.3181,3304.2,3303.6,3.205899]
[1732464794749,1.3181,3304.2,3303.7,2.4215]
[1732464794955,0.7681,3304.5,3304.0,2.4213]
[1732464795252,0.7681,3304.5,3304.0,0.24213]
[1732464795451,3.79427,3304.5,3304.0,0.24213]
[1732464795645,3.79427,3304.5,3303.9,2.42132]
[1732464796062,3.79427,3304.5,3304.1,2.42119]
[1732464796063,0.7681,3304.5,3304.1,2.42119]
[1732464796354,0.7681,3304.5,3303.9,2.42137]
[1732464796561,0.7681,3304.5,3304.1,2.4212]
[1732464796943,1.3181,3304.8,3304.2,2.42114]
[1732464797147,1.3181,3304.8,3304.4,2.42094]
[1732464797318,4.34405,3304.8,3304.2,2.42113]
[1732464797652,1.3181,3304.8,3304.2,2.42109]
[1732464797865,1.3181,3304.8,3304.3,2.42107]
[1732464798218,1.3181,3304.8,3304.5,2.42089]
[1732464798439,1.37258376,3305.2,3304.8,2.42067]
[1732464798843,0.55,3305.1,3304.4,2.42099]
[1732464799168,0.55,3305.1,3304.1,3.0]
[1732464799169,1.37258376,3305.2,3304.7,2.42072]
[1732464799352,0.7681,3305.2,3304.7,2.42072]
[1732464799665,0.7681,3305.2,3304.9,2.42063]
[1732464800216,0.7681,3305.6,3305.1,2.42043]
[1732464800422,0.7681,3305.6,3305.3,2.42033]
[1732464800620,0.7681,3305.9,3305.3,2.42029]
[1732464800853,3.02503,3305.8,3305.1,2.42045]
[1732464801158,0.7681,3305.9,3305.3,2.4203]
[1732464801461,0.7681,3305.9,3305.7,2.42006]
[1732464801676,0.7681,3305.9,3305.5,2.42019]
[1732464802245,0.7681,3305.9,3305.6,2.42012]
[1732464802461,0.7764,3306.3,3305.7,2.42005]
[1732464802769,0.7764,3306.3,3305.5,0.03025123]
[1732464802770,1.38851421,3306.3,3305.5,3.23675]
[1732464803069,1.38851421,3306.3,3305.7,2.42]
[1732464803216,1.38851421,3306.3,3305.5,0.8166]
[1732464803559,1.38851421,3306.3,3305.9,2.4199]
[1732464804165,4.41304421,3306.3,3305.7,2.42003]
[1732464804333,4.41304421,3306.3,3305.8,2.41997]
[1732464804660,4.41304421,3306.3,3305.9,2.41986]
[1732464804661,1.38851421,3306.3,3305.9,2.41986]
[1732464804862,1.38851421,3306.3,3305.7,2.42005]
[1732464804863,0.7764,3306.7,3306.3,2.41957]
[1732464805027,0.7764,3306.7,3306.2,2.41969]
[1732464805660,0.7764,3306.7,3306.4,2.4195]
[1732464806536,0.8032,3307.1,3306.5,2.41941]
[1732464806755,0.6150742,3306.7,3306.5,2.41941]
[1732464806933,0.6150742,3306.7,3306.6,2.4194]
[1732464807376,0.8032,3307.7,3307.0,2.41911]
[1732464807540,0.8032,3307.7,3307.3,2.41884]
[1732464807541,0.60933544,3307.6,3307.3,2.41884]
[1732464808426,0.60933544,3307.6,3307.1,2.41903]
[1732464808830,0.60933544,3307.6,3307.0,2.41906]
[1732464809278,0.60933544,3307.6,3307.2,2.41894]
[1732464809484,0.60933544,3307.6,3307.1,2.41897]
[1732464809773,0.60933544,3307.6,3307.2,2.41891]
[1732464810136,0.60933544,3307.6,3307.0,3.19449]
[1732464810355,0.60933544,3307.6,3307.1,2.41901]
[1732464810571,0.60933544,3307.6,3307.2,2.41891]
[1732464810879,0.60933544,3307.6,3307.3,2.41888]
[1732464811036,0.60933544,3307.6,3307.4,2.41881]
[1732464811229,0.05393529,3307.9,3307.7,2.41858]
[1732464812033,0.05393529,3307.9,3307.8,2.41852]
[1732464817040,0.05393529,3307.9,3307.4,5.41879]
[1732464817241,0.05393529,3307.9,3307.8,2.41852]
[1732464817451,0.05393529,3307.9,3307.8,2.902236]
[1732464818144,0.05393529,3307.9,3307.4,2.41878]
[1732464818347,0.05393529,3307.9,3307.5,2.4187]
[1732464818579,0.05393529,3307.9,3307.4,2.41878]
[1732464820003,0.05393529,3307.9,3307.8,2.41852]
[1732464825168,0.05393529,3307.9,3307.8,3.26624662]
[1732464826004,0.05393529,3307.9,3307.8,3.689434]
[1732464826532,0.05393529,3307.9,3307.8,3.23602]
[1732464826981,0.05393529,3307.9,3307.8,3.53782]
[1732464827183,0.05393529,3307.9,3307.8,4.103229]
[1732464827409,0.05393529,3307.9,3307.8,3.801429]
[1732464827613,0.05393529,3307.9,3307.8,2.11621]
[1732464828374,0.05393529,3307.9,3307.7,3.0]
[1732464828574,0.05393529,3307.9,3307.7,5.11626]
[1732464828822,0.825,3308.2,3307.7,5.11626]
[1732464828967,0.825,3308.2,3307.8,2.11621]
[1732464829820,0.825,3308.2,3307.7,3.723253]
[1732464829969,0.825,3308.2,3307.8,2.11616]
[1732464830169,0.825,3308.2,3307.9,2.11609]
[1732464830571,0.825,3308.5,3308.0,2.11604]
[1732464830982,0.825,3308.5,3307.9,2.1161]
[1732464831379,0.825,3308.5,3308.0,2.11602]
[1732464831908,0.772,3308.8,3308.3,2.11584]
[1732464832114,3.79425,3308.8,3308.2,2.11595]
[1732464832305,1.45364,3308.8,3307.8,0.3018]
[1732464832476,4.47595,3308.8,3308.2,2.11594]
[1732464833111,1.45364,3308.8,3307.8,0.3018]
[1732464833300,3.02239,3308.7,3307.8,2.41798]
[1732464833501,6.04481,3308.7,3308.0,2.11603]
[1732464833812,3.02245,3308.6,3308.0,2.11603]
[1732464833982,0.772,3308.8,3307.7,5.11623]
[1732464834208,7.4302954,3308.8,3308.0,2.11603]
[1732464834407,7.4302954,3308.8,3308.1,2.116]
[1732464834624,4.4079954,3308.8,3308.0,2.11603]
[1732464834825,0.44079954,3308.7,3308.0,2.11603]
[1732464835036,3.02245,3308.6,3308.0,2.11603]
[1732464835400,0.44079954,3308.7,3307.7,2.11627]
[1732464835601,4.4079954,3308.8,3308.1,2.11595]
[1732464835906,4.4079954,3308.8,3308.3,2.11582]
[1732464835907,1.3857354,3308.8,3308.3,2.11582]
[1732464836911,4.4080254,3308.8,3308.2,2.11592]
[1732464837210,1.3857354,3308.8,3308.4,2.11582]
[1732464837519,3.02193,3309.2,3308.3,0.030225]
[1732464837727,3.79393,3309.2,3308.6,2.11569]
[1732464838032,1.36388526,3309.2,3308.8,2.11552]
[1732464838799,4.38582526,3309.2,3308.6,2.11566]
[1732464839038,3.02201,3309.1,3308.4,2.11578]
[1732464839400,1.36388526,3309.2,3308.6,2.11567]
[1732464839401,4.38575526,3309.2,3308.6,2.11567]
[1732464839595,3.02209,3309.0,3308.4,2.11578]
[1732464839837,3.02198,3309.1,3308.5,2.11575]
[1732464840009,3.02206,3309.0,3308.4,2.11578]